Cogmind - Beta 13 *** ADVENTURER MODE // 2024.04.03 @ 19:05:15 Player: rikka Result: Destroyed by Y-45 Defender with Beam Rifle Performance ------------- Evolutions (2) 1000 Regions Visited (5) 1000 Robots Destroyed (37) 185 Value Destroyed (1059) 1059 Prototype IDs (0) 0 Alien Tech Used (0) 0 Bonus (48) 48 TOTAL SCORE: 3292 Bonus ------- High Alert Combat Kills 48 Cogmind --------- Core Integrity 0/550 Matter 74/300 Energy 350/350 System Corruption 0% Temperature Cool (82) Movement Core (150) Ox2 Location -8/Materials Parts ------- > --- POWER (1) -------- (None) > --- PROPULSION (4) --- (None) > --- UTILITY (4) ------ High-capacity Battery > --- WEAPON (2) ------- Minigun > --- INVENTORY (5) ---- Light Treads Light Treads Light Treads Coolant Injector Small Storage Unit Peak State ------------ > --- POWER ------------ (None) > --- PROPULSION ------- Aluminum Leg > --- UTILITY ---------- Coolant Injector Large Storage Unit > --- WEAPON ----------- Gauss Cannon Gauss Cannon > --- INVENTORY -------- Small Storage Unit High-capacity Battery Medium Matter Pod Advanced ECM Suite Minigun Gauss Cannon Gauss Cannon Rocket Launcher [Rating: 16] Favorites ----------- Power Ion Engine Engine Ion Engine Propulsion Aluminum Leg Leg Aluminum Leg Utility Propulsion Shielding Device Improved Heat Sink Storage Small Storage Unit Protection Propulsion Shielding Weapon Assault Rifle Energy Gun EM Pulse Gun Ballistic Gun Assault Rifle Ballistic Cannon Gauss Cannon Launcher Rocket Launcher Build | -11 -10 -10 -10 -9 -8 ------- Run | Yrd Mat Min Exi Min Mat Slots Evolved 4 | . . . . . 4 Power . | . . . . . . Propulsion 2 | . . . . . 2 Utility 2 | . . . . . 2 Weapon . | . . . . . . Parts Attached 28 | 4 3 . . 1 20 Power 2 | . 1 . . . 1 Engine 2 | . 1 . . . 1 Core . | . . . . . . Reactor . | . . . . . . Propulsion 5 | 2 . . . 1 2 Treads . | . . . . . . Leg 5 | 2 . . . 1 2 Wheel . | . . . . . . Hover . | . . . . . . Flight . | . . . . . . Utility 7 | . 2 . . . 5 Device 2 | . . . . . 2 Storage 4 | . 1 . . . 3 Processor . | . . . . . . Hackware . | . . . . . . Protection 1 | . 1 . . . . Artifact . | . . . . . . Weapon 14 | 2 . . . . 12 Energy Gun 3 | . . . . . 3 Energy Cannon . | . . . . . . Ballistic Gun 4 | 2 . . . . 2 Ballistic Cannon 4 | . . . . . 4 Launcher 3 | . . . . . 3 Special Weapon . | . . . . . . Impact Weapon . | . . . . . . Slashing Weapon . | . . . . . . Piercing Weapon . | . . . . . . Special Melee Weapon . | . . . . . . Unidentified Prototypes . | . . . . . . Parts Lost 16 | . . . . . 16 Power 2 | . . . . . 2 Propulsion 3 | . . . . . 3 Utility 4 | . . . . . 4 Weapon 7 | . . . . . 7 Highest Loss Streak 8 | . . . . . 8 To Critical Strikes . | . . . . . . Average Slot Usage (%) 77 | . 92 100 100 88 42 Engine 10 | . 13 14 14 14 2 Leg 18 | . 28 28 28 16 12 Storage 12 | . 13 14 14 14 10 Protection 9 | . 8 14 14 14 1 Ballistic Gun 20 | . 28 28 28 28 1 Ballistic Cannon 1 | . . . . . 5 Naked Turns . | . . . . . . Heaviest Build 36 | 4 15 15 15 15 36 Greatest Support 33 | 20 20 20 20 20 33 Greatest Overweight (x) 11 | . . . . 1 11 Average Overweight (x) . | . . . . . 2 Largest Inventory Capacity 15 | 5 8 8 8 8 15 Average Capacity 9 | 5 7 8 8 8 14 Most Carried 11 | 5 5 5 5 8 11 Average Carried 5 | 3 4 5 5 5 6 Final Capacity 8 | 5 8 8 8 8 5 Final Carried 8 | 4 5 5 5 8 5 Class Distribution -------------------- 100% | Mutant Dominant Class ---------------- Mutant | -10/Materials Mutant | -10/Mines Mutant | -10/Exiles Mutant | -9/Mines Mutant | -8/Materials Resources | -11 -10 -10 -10 -9 -8 ----------- Run | Yrd Mat Min Exi Min Mat Matter Collected 699 | 223 . 46 . 330 100 Remotely . | . . . . . . Salvage Created 1072 | . 46 46 . 173 807 Parts 60 | . 6 7 . 6 41 Haulers Intercepted . | . . . . . . Recyclers Shooed 2 | . . . . 1 1 Parts Field Recycled . | . . . . . . Retrieved Matter . | . . . . . . Parts Self-Destructed . | . . . . . . Prevented . | . . . . . . Kills | -11 -10 -10 -10 -9 -8 ------- Run | Yrd Mat Min Exi Min Mat Combat Hostiles Destroyed 35 | . 3 3 . 6 23 Guns 28 | . 3 3 . 6 16 Cannons 1 | . . . . . 1 AOE 6 | . . . . . 6 Classes Destroyed 10 | . 1 . . 3 6 Worker 2 | . . . . . 2 Builder 1 | . . . . . 1 Watcher 2 | . . . . . 2 Swarmer 13 | . 3 3 . . 7 Grunt 12 | . . . . 2 10 Brawler 2 | . . . . . 2 Duelist 2 | . . . . 1 1 Sentry 1 | . . . . . 1 Hunter 2 | . . . . . 2 Assembled 3 | . . . . 3 . Best Kill Streak 17 | . 3 3 . 3 17 Combat Bots Only 16 | . 3 3 . 3 16 Max Kills in Single Turn 3 | . 1 2 . 1 3 Gunslinging 1 | . . 1 . . 1 Exploded 3 | . . . . . 3 Melee . | . . . . . . Uniques/NPCs Destroyed . | . . . . . . Combat | -11 -10 -10 -10 -9 -8 -------- Run | Yrd Mat Min Exi Min Mat Hostile Shots Fired 297 | . 12 22 . 37 226 Missed 90 | . 5 6 . 10 69 Damage Taken 2276 | . 43 81 . 306 1846 Core 628 | . 8 22 . 45 553 Absorbed by Shields . | . . . . . . Redirected to Shielding 28 | . . 4 . 10 14 Ignored by Resistances 669 | . 14 32 . 90 533 Core Remaining (%) 85 | 100 . . . 70 . Volleys Fired 93 | . 6 5 . 21 61 Largest 2 | . 2 2 . 2 2 Hottest 126 | . 40 40 . 40 126 Shots Fired 159 | . 12 10 . 41 96 Gun 127 | . 12 10 . 41 64 Cannon 22 | . . . . . 22 Launcher 10 | . . . . . 10 Special . | . . . . . . Kinetic 106 | . 12 10 . 41 43 Thermal 17 | . . . . . 17 Explosive 10 | . . . . . 10 Electromagnetic 26 | . . . . . 26 Robot Hit Streak 21 | . 3 3 . 10 21 Robot Miss Streak 5 | . 2 2 . 2 5 Penetration Max . | . . . . . . Secondary Targets 6 | . . 1 . . 5 Max Gunslinging Chain 1 | . . 1 . . 1 Shots Hit Robots 122 | . 6 5 . 34 77 Core Hits 75 | . 3 3 . 13 56 Critical Kills . | . . . . . . Critical Parts Destroyed 1 | . . . . 1 . Critical Strikes 5 | . . . . 1 4 Destroy 1 | . . . . 1 . Blast 3 | . . . . . 3 Corrupt 1 | . . . . . 1 Melee Attacks . | . . . . . . Impact . | . . . . . . Slashing . | . . . . . . Piercing . | . . . . . . Sneak Attacks . | . . . . . . Combat Hostiles . | . . . . . . Follow-up Attacks . | . . . . . . Damage Inflicted 2845 | . 92 76 . 461 2216 Guns 1404 | . 92 76 . 448 788 Cannons 339 | . . . . . 339 Explosions 1081 | . . . . . 1081 Melee . | . . . . . . Ramming 21 | . . . . 13 8 Kinetic 1189 | . 92 76 . 448 573 Thermal 231 | . . . . . 231 Explosive 1081 | . . . . . 1081 Electromagnetic 323 | . . . . . 323 Impact . | . . . . . . Slashing . | . . . . . . Piercing . | . . . . . . Highest Corruption 2 | . 2 2 2 2 . Average Corruption 1 | . 1 2 2 2 . Corruption Purged . | . . . . . . Corruption Blocked . | . . . . . . Effects 13 | . . . 2 11 . Message Errors 4 | . . . 1 3 . Matter Fused 5 | . . . . 5 . Heat Flow Errors 1 | . . . 1 . . Parts Rejected 1 | . . . . 1 . Data Loss (minor) 1 | . . . . 1 . Weapon Failures 1 | . . . . 1 . Overload Shots . | . . . . . . Overflow Damage 89 | . . . . . 89 Projectiles 19 | . . . . . 19 Explosions 70 | . . . . . 70 Melee . | . . . . . . Knockbacks 4 | . . . . . 4 Impact . | . . . . . . Kinetic 3 | . . . . . 3 Secondary 1 | . . . . . 1 Self-Inflicted Damage 100 | . . . . . 100 Shots 5 | . . . . . 5 Rammed . | . . . . . . Targets Rammed 6 | . . . . 3 3 Kicked 6 | . . . . 3 3 Crushed . | . . . . . . Highest Temperature 384 | . . . 229 5 384 Average Temperature 102 | . . . 119 5 101 Received Heat Transfer 1065 | . . . . 66 999 Effects 2 | . . . . . 2 Shutdowns 1 | . . . . . 1 Short Circuit 1 | . . . . . 1 Siege Activations . | . . . . . . Robots Corrupted . | . . . . . . Combat Hostiles . | . . . . . . Parts Fried . | . . . . . . Impact Corruptions . | . . . . . . Robots Melted . | . . . . . . Combat Hostiles . | . . . . . . Parts Melted . | . . . . . . Heat Transferred 518 | . . . . . 518 Parts Sabotaged . | . . . . . . Parts Stolen . | . . . . . . Parts Stripped . | . . . . . . Power Chain Reactions . | . . . . . . Alert | -11 -10 -10 -10 -9 -8 ------- Run | Yrd Mat Min Exi Min Mat Peak Influence 626 | . 70 93 . 85 626 Initial 23 | . . 23 . . . Average 125 | . 51 55 . 32 354 Maximum Alert Level 2 | . . . . . 2 Low Security (%) 79 | 100 100 100 . 100 27 Level 1 4 | . . . . . 14 Level 2 16 | . . . . . 58 Level 3 . | . . . . . . Level 4 . | . . . . . . Level 5 . | . . . . . . High Security . | . . . . . . Max Security . | . . . . . . Squads Dispatched 5 | . . . . . 5 Investigation . | . . . . . . Extermination . | . . . . . . Reinforcement 3 | . . . . . 3 Assault 1 | . . . . . 1 Garrison 1 | . . . . . 1 Intercept . | . . . . . . Searches Triggered . | . . . . . . Construction Impeded 2 | . . . . . 2 Haulers Reinforced . | . . . . . . Active Scanning Responses . | . . . . . . Cargo Convoy Interrupts . | . . . . . . Stealth | -11 -10 -10 -10 -9 -8 --------- Run | Yrd Mat Min Exi Min Mat Distress Signals 2 | . 1 . . . 1 Communications Jammed . | . . . . . . Distress Signals . | . . . . . . Times Spotted 68 | . 4 3 . 8 53 Peak Tracking Total 9 | . 4 3 . 3 9 Tactical Retreats . | . . . . . . Traps | -11 -10 -10 -10 -9 -8 ------- Run | Yrd Mat Min Exi Min Mat Traps Triggered 5 | . 3 . . . 2 Indirectly . | . . . . . . Trap Hack Attempts . | . . . . . . Triggered . | . . . . . . Disarmed . | . . . . . . Reprogrammed . | . . . . . . Reused . | . . . . . . Traps Extracted . | . . . . . . Installed . | . . . . . . Triggered 1 | . . . . . 1 Machines | -11 -10 -10 -10 -9 -8 ---------- Run | Yrd Mat Min Exi Min Mat Machines Disabled 1 | . . . . . 1 Max in Single Turn 1 | . . . . . 1 Machines Repaired . | . . . . . . Machines Dismantled . | . . . . . . Machines Sabotaged . | . . . . . . Overloaded Fab Kills . | . . . . . . Hacking | -11 -10 -10 -10 -9 -8 --------- Run | Yrd Mat Min Exi Min Mat Machines Accessed . | . . . . . . Terminals . | . . . . . . Fabricators . | . . . . . . Repair Stations . | . . . . . . Recycling Units . | . . . . . . Scanalyzers . | . . . . . . Garrison Access . | . . . . . . Total Hacks . | . . . . . . Successful . | . . . . . . Failed . | . . . . . . Catastrophic . | . . . . . . Database Lockouts . | . . . . . . Manual . | . . . . . . Terminals . | . . . . . . Fabricators . | . . . . . . Repair Stations . | . . . . . . Recycling Units . | . . . . . . Scanalyzers . | . . . . . . Garrison Access . | . . . . . . Terminal Hacks . | . . . . . . Fabricator Hacks . | . . . . . . Repair Station Hacks . | . . . . . . Recycling Unit Hacks . | . . . . . . Scanalyzer . | . . . . . . Garrison Access Hacks . | . . . . . . Unauthorized Hacks . | . . . . . . Terminals . | . . . . . . Fabricators . | . . . . . . Repair Stations . | . . . . . . Recycling Units . | . . . . . . Scanalyzers . | . . . . . . Garrison Access . | . . . . . . Data Cores Recovered . | . . . . . . Used . | . . . . . . Hacking Detections . | . . . . . . Full Trace Events . | . . . . . . Feedback Events . | . . . . . . Feedback Blocked . | . . . . . . Robot Schematics Acquired . | . . . . . . Robots Built . | . . . . . . Authchips . | . . . . . . Time . | . . . . . . Total Robot Build Rating . | . . . . . . Part Schematics Acquired . | . . . . . . Parts Built . | . . . . . . Authchips . | . . . . . . Time . | . . . . . . Total Part Build Rating . | . . . . . . Parts Repaired . | . . . . . . Time . | . . . . . . Parts Recycled . | . . . . . . Recycled Matter . | . . . . . . Retrieved Matter . | . . . . . . Retrieved Components . | . . . . . . Parts Scanalyzed . | . . . . . . Part Schematics Acquired . | . . . . . . Parts Damaged . | . . . . . . Bothacking | -11 -10 -10 -10 -9 -8 ------------ Run | Yrd Mat Min Exi Min Mat Used RIF Installer . | . . . . . . Robots Hacked . | . . . . . . Non-combat . | . . . . . . Combat . | . . . . . . Robot Hacks Applied . | . . . . . . Relay Couplers Released . | . . . . . . Fabnet Peak Effective % . | . . . . . . Robots Rewired . | . . . . . . Allies Hacked . | . . . . . . Hacks Repelled . | . . . . . . Allies | -11 -10 -10 -10 -9 -8 -------- Run | Yrd Mat Min Exi Min Mat Total Allies . | . . . . . . Largest Group . | . . . . . . Highest-Rated Group . | . . . . . . Highest-Rated Ally . | . . . . . . Total Orders . | . . . . . . Ally Attacks . | . . . . . . Total Damage . | . . . . . . Kills . | . . . . . . Allies Corrupted . | . . . . . . Allies Melted . | . . . . . . Intel | -11 -10 -10 -10 -9 -8 ------- Run | Yrd Mat Min Exi Min Mat Robot Analysis Total . | . . . . . . Derelict Logs Recovered 2 | . . 1 . 1 . Drone Launches . | . . . . . . Drone Recoveries . | . . . . . . Exploration | -11 -10 -10 -10 -9 -8 ------------- Run | Yrd Mat Min Exi Min Mat Turns Passed 1677 | 60 169 111 87 802 448 Spaces Moved 840 | 43 121 81 73 427 95 Core 14 | 4 . . . . 10 Treads . | . . . . . . Legs 826 | 39 121 81 73 427 85 Wheels . | . . . . . . Hover . | . . . . . . Flight . | . . . . . . Fastest Speed 50 | 50 120 120 120 120 120 Average Speed 160 | 113 120 120 120 169 257 Slowest Speed 600 | 120 120 120 120 190 600 Overloaded Moves . | . . . . . . Propulsion Burnouts . | . . . . . . Robots Hopped . | . . . . . . Cave-ins Triggered . | . . . . . . Exploration Rate (%) 30 | 4 26 31 10 87 23 Regions Visited 5 Branch Regions 3 Pre-discovered Areas 1 | . . . . 1 . Known Exits Taken . | . . . . . . Unknown Exits Taken 5 | 1 1 1 1 1 . Scrap Searched 2 | . . . . 2 . Spaces Dug . | . . . . . . Terrain Destroyed 61 | . . . . . 61 Melee . | . . . . . . Projectile 10 | . . . . . 10 AOE 51 | . . . . . 51 Terrain Rammed . | . . . . . . Walls Destroyed . | . . . . . . Machines Disabled . | . . . . . . Actions | -11 -10 -10 -10 -9 -8 --------- Run | Yrd Mat Min Exi Min Mat Total 1002 | 54 133 85 72 460 198 Wait 5 | . . . . 5 . Move 835 | 42 120 80 72 426 95 Hop . | . . . . . . Pick Up 33 | 8 4 . . 4 17 Fast Attach . | . . . . . . Attach 26 | 4 3 . . 1 18 Detach 1 | . . . . . 1 Swap 2 | . . . . . 2 Drop 1 | . . . . . 1 Fire 93 | . 6 5 . 21 61 Melee . | . . . . . . Ram . | . . . . . . Kick 6 | . . . . 3 3 Crush . | . . . . . . Escape Stasis . | . . . . . . Rewire . | . . . . . . Trap . | . . . . . . Miscellaneous . | . . . . . . Route ------- -11/Scrapyard -10/Materials -10/Mines (discovered 2 exits: [*Mat] / [*Exi]) -10/Exiles -9/Mines -8/Materials History --------- Turn | Location | Event 4 | -11/Scrapyard | Discovered new exit (range 15) 61 | -11/Scrapyard | Entered Materials 186 | -10/Materials | Discovered new exit (range 15) 230 | -10/Materials | Entered Mines 242 | -10/Mines | Discovered new exit (range 12) 303 | -10/Mines | Build established: Mutant 316 | -10/Mines | Learned Materials emergency access door positions 335 | -10/Mines | Deemed a non-threat by the Exiles lab entrance 335 | -10/Mines | Discovered new exit (range 5) 341 | -10/Mines | Entered Exiles 361 | -10/Exiles | Discovered new exit (range 14) 399 | -10/Exiles | Met 8R-AWN 428 | -10/Exiles | Entered Mines 628 | -9/Mines | Received a Rocket Launcher from a helpful Derelict 898 | -9/Mines | Assembled infested the area 1224 | -9/Mines | Discovered new exit (range 6) 1230 | -9/Mines | Entered Materials 1230 | -8/Materials | Evolved 4 slots: Propulsion x2, Utility x2 1327 | -8/Materials | Lost 3 parts (1p1u1w) 1407 | -8/Materials | Destroyed 16 combat bots 1416 | -8/Materials | Lost 8 parts (1p3n4w) 1605 | -8/Materials | Core integrity fell below 50% 1630 | -8/Materials | First assault squad dispatched 1659 | -8/Materials | Garrison activated, responded to threat 1671 | -8/Materials | Core integrity fell below 20% 1678 | -8/Materials | Destroyed by Y-45 Defender with Beam Rifle Last Messages --------------- L-31 Rogue calls for garrison reinforcements. ALERT: Activating Garrison Access M001. L-31 Rogue suffers critical hit (Burn). Gauss Cannon severed. Gauss Cannon destroyed. Critical hit (Burn: +37). U-05 Engineer builds a Wall. [Achievement: Let's See Who's Tougher] Rocket Launcher destroyed. G-47 Trooper destroyed. Critical hit (Burn: +37). Med. Matter Pod destroyed. U-05 Engineer lays Concrete. Lrg. Storage Unit destroyed. U-05 Engineer lays Concrete. Critical hit (Burn: +37). U-05 Engineer lays Concrete. L-31 Rogue destroyed. U-05 Engineer lays Concrete. Critical hit (Burn: +37). Map ----- +----------------------------------------------------+ | ?????????????????????????????????????????????????? | | ?????????????????????????????????????????????????? | | ?????????????????????????????????????????????????? | | ?????????????????????????????????????????????????? | | ?????????????????????????????????????????????????? | | ?????????????????????????????????????????????????? | | ?????????????????????????????????????????????????? | | ?????????????????????????????????????????????????? | | ?????????????????????????????????????????????????? | | ?????????????????????????????????????????????????? | | ?????????????????????????#+#?????????????????????? | | ????????????????????????? ?????????????????????? | | ????????????????????????? ?????????????????????? | | ????????????????????????? ?????????????????????? | | ????????????????????????? ?????????????????????? | | ?????????????????????????% #?????????????????????? | | ? ??????????????????????% #?????????????????????? | | ? ????????????????#### ###?####??????????????? | | ????????????????# #; g#;? ???????????????? | | ????????????######;##% ;# """???????????????? | | ????????????# # """???????????????? | | #????????????# g """???????????????? | | #????????????#^ u= """"??????????????? | | #????????????# =% """"??????????????? | | #????????????# ===Y """"??????????????? | | ########?????# %@= """"??????????????? | | # !!!!#?????# != # #???????????? | | !#?????# #?????###???????????? | | # #???###! ##???????????????????? | | # #####"# % ##???????????????????? | | % "" ##???????????????????? | | ######""#####a "" #????????????????????? | | ## #########???#% "" g#????????????????????? | | ! #?????# % """g #????????????????????? | | #?????# ] "" ???????????????????? | | #?????# ???????????????????? | | #?????# ??????????????????? | | #?????# #########??????????????????? | | #?????## Y##??????????????????????????? | | ###########??????# #???????????????????????????? | | ?????????????????# #???????????????????????????? | | ?????????????????+!% /???????????????????????????? | | ?????????????????# % #???????????????????????????? | | ?????????????????# #???????????????????????????? | | ?????????????????? #???????????????????????????? | | ?????????????????? ???????????????????????????? | | ??????????????????? ?????????????????????????????? | | ?????????????????????????????????????????????????? | | +????????????????????????????????????????????????? | | ?????????????????????????????????????????????????? | +----------------------------------------------------+ Best States ------------- Heat Dissipation 45 Coolant Potential 65 Energy Generation 10 Energy Capacity 350 Matter Stores 300 Matter Capacity 400 Sight Range 16 Terrain Scan Density 10 Resistance: KI 20 Resistance: TH 20 Resistance: EX 20 Resistance: EM 20 Resistance: I 20 Resistance: S 20 Resistance: P 20 Propulsion Shielding 33 Evasion (%) 55 Offensive Hacking 10 Item Schematics ----------------- None Robot Schematics ------------------ None Fabricated ------------ Nothing Alien Tech Used ----------------- None Achievements -------------- Let's See Who's Tougher Significant Disruption Challenges ------------ None Game ------ Seed ActiveFlightArmor Manual? 0 Play Time 00:20:52 Cumulative 4.5 hours Start 2024.04.03 @ 18:46:07 End 2024.04.03 @ 19:05:15 Sessions 1 Manual Loads 0 Difficulty Adventurer Special Mode None Game No. 9 Rogue 0 Adventurer 8 Explorer 1 Win Type - Total 0 Types 0/0/0/0/0/0/0/0/0 Lore% 7 Gallery% 11 Achievement% 8 Wizard Run 0 Options --------- Layout 0 ASCII 0 Keyboard 0 Movement Mouse Keybinds 0 Fullscreen 1 Font 18/SmallcapsGlow Map View 76x50 Zoom Use 0% Tactical HUD 0 Map Filters NONE Filters NONE Steam 1 RUN: 81694a06-0e48-4cea-ba70-cda65cf10881